Cogmind - Beta 16 @@@ ROGUE MODE // 2025.12.14 @ 00:33:48 Player: AngelSpirit Result: Destroyed by MAIN.C with Omega Cannon Performance ------------- Evolutions (9) 4500 Regions Visited (22) 4400 Robots Destroyed (439) 2195 Value Destroyed (22637) 22637 Prototype IDs (72) 1440 Alien Tech Used (13) 2600 Bonus (38394) 38394 TOTAL SCORE: 76166 Bonus ------- Triggered High Security 2000 Triggered Max Security 1000 High Alert Combat Kills 10610 Follower Combat Kills 3778 Entered Garrisons 400 Acquired ECA 300 Met Warlord at Base 500 MAIN.C Attacked Warlord 500 Warlord Defense Kills 262 Met Warlord at Research 2000 Scanned by Researcher 500 Met Sigix 2000 Activated Exoskeleton 3000 Destroyed MAIN.C Guards 500 Met MAIN.C 5000 Destroyed MAIN.C Shell 5000 Met Warlord at Command 2000 Friendly Fire -956 Cogmind --------- Core Integrity 0/1600 Matter 425/425 Energy 100/100 System Corruption 20% Temperature Cool (0) Movement Core (50) Location -1/Command Parts ------- > --- POWER (2) -------- (None) > --- PROPULSION (6) --- (None) > --- UTILITY (12) ----- Experimental Coolant Injector Advanced Signal Interpreter Advanced Target Analyzer Experimental Core Analyzer > --- WEAPON (5) ------- (None) > --- INVENTORY (5) ---- Matter Compressor (250) High-powered Transdimensional Reconstructor High-powered Transdimensional Reconstructor Peak State ------------ > --- POWER ------------ Light Antimatter Reactor Matter Drive > --- PROPULSION ------- Cooled Antigrav System Cooled Antigrav System Cooled Antigrav System Cooled Antigrav System Antigrav Array > --- UTILITY ---------- Experimental Heat Sink Small Storage Unit Experimental Optical Array Experimental Targeting Computer Experimental Core Analyzer Experimental Core Analyzer Advanced Kinecellerator Advanced Thermal Shield Microwarp Drive > --- WEAPON ----------- Advanced Variable Charge Gun Helical Railgun Helical Railgun Helical Railgun > --- INVENTORY -------- Particle Reactor Enhanced Biometal Leg Enhanced Biometal Leg Transdimensional Reconstructor High-powered Transdimensional Reconstructor High-powered Transdimensional Reconstructor [Rating: 214] Favorites ----------- Power Constructs Engine Ion Engine Power Core Constructs Reactor Light Antimatter Reactor Propulsion Constructs Treads Armored Medium Treads Leg Arachnoskeleton Wheel Wheel Hover Unit Constructs Flight Unit Q-thruster Utility Huge Storage Unit Device Armored Scrap Engine Storage Huge Storage Unit Processor Advanced Signal Interpreter Hackware Hacking Suite Protection Improved Medium Armor Plating Artifact Microwarp Drive Weapon Constructs Energy Gun Advanced Variable Charge Gun Energy Cannon Constructs Ballistic Gun Constructs Ballistic Cannon Assault Cannon Launcher Subdweller Shrapnel Launcher Special Weapon Improved Remote Datajack Impact Weapon Core Stripper Slashing Weapon Particle Cleaver Build | -11 -10 -10 -8 -8 -8 -7 -7 -7 -5 -5 -5 -5 -5 -5 -4 -4 -3 -3 -3 -2 -1 -1 ------- Run | Yrd Mat Sub Mat Gar Mat Fac Sto Rec Fac Gar Fac Upp Upp War Pro Fac Res Qua Sec Res Acc Com Slots Evolved 18 | . . . 4 . . 2 . . 4 . . . . . . 2 2 . . 2 2 . Power 1 | . . . . . . . . . 1 . . . . . . . . . . . . . Propulsion 4 | . . . 1 . . 1 . . 1 . . . . . . 1 . . . . . . Utility 10 | . . . 2 . . 1 . . 2 . . . . . . . 2 . . 2 1 . Weapon 3 | . . . 1 . . . . . . . . . . . . 1 . . . . 1 . Parts Attached 281 | 7 9 17 9 17 15 11 21 5 2 12 4 1 4 3 . 13 17 17 34 29 13 21 Power 26 | 2 1 1 . 2 3 . 2 . . 1 . . . . . . . 2 4 3 3 2 Engine 12 | 2 1 1 . 2 2 . 2 . . . . . . . . . . . . 1 . 1 Core 3 | . . . . . 1 . . . . 1 . . . . . . . 1 . . . . Reactor 11 | . . . . . . . . . . . . . . . . . . 1 4 2 3 1 Propulsion 47 | 2 3 6 1 3 4 2 3 1 . . . . . . . . . 3 8 7 2 2 Treads 1 | . . . . . . . . . . . . . . . . . . . . . . 1 Leg 7 | . 1 . . 3 1 . . . . . . . . . . . . . . 1 . 1 Wheel 20 | 2 2 6 1 . 3 2 3 1 . . . . . . . . . . . . . . Hover 18 | . . . . . . . . . . . . . . . . . . 3 8 6 1 . Flight 1 | . . . . . . . . . . . . . . . . . . . . . 1 . Utility 127 | 1 3 2 2 7 4 5 4 4 2 9 4 . 4 3 . 10 11 8 14 15 6 9 Device 66 | . . 1 1 4 3 1 3 4 . 4 1 . 4 1 . 5 7 3 7 7 5 5 Storage 7 | 1 2 . . . . . . . . . 1 . . . . 1 . 1 . . . 1 Processor 19 | . . 1 . . 1 1 . . 1 . 1 . . . . 2 2 . 5 3 1 1 Hackware 11 | . . . . . . 1 . . . 2 1 . . . . 1 1 2 . 3 . . Protection 21 | . 1 . 1 3 . 2 1 . 1 3 . . . 2 . 1 1 . 1 2 . 2 Artifact 3 | . . . . . . . . . . . . . . . . . . 2 1 . . . Weapon 81 | 2 2 8 6 5 4 4 12 . . 2 . 1 . . . 3 6 4 8 4 2 8 Energy Gun 14 | . . . . . 1 2 4 . . . . . . . . 2 2 1 . 1 . 1 Energy Cannon 21 | . 1 3 1 3 . . 4 . . 1 . . . . . . 3 2 3 . . . Ballistic Gun 19 | 2 . . 1 1 1 1 2 . . . . . . . . . . . 5 2 . 4 Ballistic Cannon 11 | . . 1 4 1 2 1 . . . . . . . . . . . . . 1 . 1 Launcher 13 | . 1 4 . . . . 2 . . 1 . 1 . . . 1 1 . . . 2 . Special Weapon 1 | . . . . . . . . . . . . . . . . . . . . . . 1 Impact Weapon 1 | . . . . . . . . . . . . . . . . . . 1 . . . . Slashing Weapon 1 | . . . . . . . . . . . . . . . . . . . . . . 1 Piercing Weapon . | . . . . . . . . . . . . . . . . . . . . . . . Special Melee Weapon . | . . . . . . . . . . . . . . . . . . . . . . . Unidentified Prototypes 53 | . . . 1 . 1 1 10 1 . . . 1 . . . 2 4 5 15 6 2 4 Corrupted Parts 2 | . . . . . . . . . . . . . . . . . . . . . . 2 System Corruption 5 | . . . . . . . . . . . . . . . . . . . . . . 5 Parts Lost 112 | . 1 8 . 5 8 . 2 1 . 6 . 1 1 . . 4 19 5 11 1 13 26 Power 13 | . . . . 1 1 . . . . 2 . . . . . . 1 2 1 . 1 4 Propulsion 27 | . 1 5 . 2 2 . 1 . . . . . . . . . 3 1 3 . 4 5 Utility 41 | . . 1 . 1 2 . 1 1 . 2 . . 1 . . 2 9 2 5 1 4 9 Weapon 31 | . . 2 . 1 3 . . . . 2 . 1 . . . 2 6 . 2 . 4 8 Highest Loss Streak 20 | . 1 4 . 3 7 . 1 1 . 2 . 1 1 . . 1 10 2 6 1 7 20 To Critical Strikes 1 | . . . . . . . . . . . . . . . . . 1 . . . . . Average Backups 17 | . 4 15 19 20 21 22 23 21 18 18 18 23 23 22 23 21 18 3 6 7 7 7 Power . | . . 2 2 1 . 1 1 . . . . . . . . . . . . . . . Propulsion . | . . 1 2 1 1 . . . . . . . . . . . . . 1 2 1 . Utility 10 | . . 7 7 9 13 15 15 14 13 13 13 18 18 16 15 14 12 . . . 1 2 Weapon 4 | . 1 4 7 8 5 5 6 6 5 4 4 4 4 5 7 6 5 . . 1 1 . Tool/Special . | . . . . . . . . . . . . . . . . . . . . . . . Unused Backups 48 | . 2 . 1 2 3 2 3 5 1 . 1 . . 5 . 2 6 1 2 6 2 4 Power 6 | . 1 . . . . 2 . 1 . . . . . . . . . 1 . 1 . . Propulsion 8 | . . . . . . . . 1 . . . . . . . . . . 2 4 1 . Utility 19 | . . . . . 2 . . 1 1 . . . . 4 . 1 6 . . 1 1 2 Weapon 13 | . 1 . 1 2 1 . 3 2 . . 1 . . 1 . 1 . . . . . . Tool/Special 2 | . . . . . . . . . . . . . . . . . . . . . . 2 Average Slot Usage (%) 71 | . 91 97 85 68 77 86 83 69 51 54 57 58 55 54 58 52 58 59 81 89 91 85 Engine 3 | . 14 14 9 6 2 7 7 5 3 . . . . . . . . . . . . . Core 2 | . . . . . 4 . . . 1 5 5 5 4 5 5 5 4 3 1 . . . Reactor 1 | . . . . . . . . . . . . . . . . . . 1 5 7 7 7 Leg 2 | . . . . 13 17 . . . 5 3 . . . . . 1 1 . . . . 6 Wheel 6 | . 22 25 23 . 5 17 15 15 . . . . . . . . . . . . . . Hover 3 | . . . . . . . . . . . 1 5 5 5 . 1 2 8 22 22 19 11 Device 11 | . . 10 1 7 10 8 7 12 16 12 10 11 16 18 17 11 9 12 10 9 15 13 Storage 6 | . 14 14 9 7 7 7 7 7 5 5 5 5 5 5 5 5 3 . 4 4 4 3 Processor 5 | . . . . . . 6 7 7 5 5 5 5 5 5 5 5 8 8 11 17 18 18 Hackware 3 | . . . . . . 6 7 3 . 6 11 11 4 . . 3 7 6 4 2 5 2 Protection 3 | . 10 3 16 8 5 6 7 2 5 2 . . . 2 5 4 3 2 1 3 1 2 Energy Gun 1 | . . . . . . 6 . . . . . . . . . 3 2 3 2 3 . . Energy Cannon 6 | . 4 14 7 9 8 5 20 13 4 4 7 3 . 1 5 3 5 7 7 . . . Ballistic Gun 4 | . 23 1 7 . 9 2 . . . . . 4 10 6 . 2 3 . 4 13 15 11 Ballistic Cannon 3 | . . 4 12 10 3 7 . . 1 2 2 2 . . 5 1 . . . . 2 2 Peak Build Rating 214 | 6 8 16 29 56 63 56 60 63 70 98 109 108 105 106 111 131 149 152 201 214 198 185 Average Rating 84 | 4 6 12 24 47 53 51 56 50 67 85 102 103 95 94 110 117 131 113 144 186 184 162 On Entrance 79 | . 6 8 16 29 51 39 54 52 58 70 98 107 100 88 106 111 118 58 129 201 186 139 Avg Prop Armor Cover (%) 6 | . . . 1 . . . . . . . . . . . . . . . . . 1 9 Naked Turns . | . . . . . . . . . . . . . . . . . . . . . . . Heaviest Build 146 | 13 93 104 123 125 120 119 120 119 110 127 122 125 129 138 138 146 141 67 78 90 96 96 Greatest Support 179 | 26 26 30 40 75 75 56 56 58 58 99 161 161 84 84 84 143 179 92 112 88 95 75 Greatest Overweight (x) 37 | . 9 10 6 11 4 4 4 37 1 2 1 1 1 1 1 1 1 . 1 1 1 4 Average Overweight (x) 1 | . 4 3 4 1 1 1 1 2 1 1 . . 1 1 1 . . . . . . . Largest Inventory Capacity 25 | 8 25 25 25 25 25 25 25 25 25 25 25 25 25 25 25 25 25 8 8 8 8 10 Average Capacity 22 | 6 22 25 25 25 25 25 25 25 25 25 25 25 25 25 25 25 23 5 8 8 8 9 Most Carried 25 | 1 11 25 25 25 25 25 25 25 19 22 24 25 25 25 25 25 25 8 8 8 8 10 Average Carried 19 | . 4 19 24 23 22 23 24 21 18 18 20 24 24 24 24 24 21 5 7 7 7 8 Final Capacity 25 | 8 25 25 25 25 25 25 25 25 25 25 25 25 25 25 25 25 5 8 8 8 8 5 Final Carried 25 | . 11 25 25 24 21 25 25 19 19 22 24 24 24 25 25 24 5 8 7 8 7 3 Scrap Engine Consumption 201 | . . . . . . . . 38 6 41 42 2 6 15 . 31 20 . . . . . Constructs Created 14 | . . . . . . . . 3 . 3 . 2 . 1 . 1 4 . . . . . Constructs Modified 69 | . . . . . . . . 9 2 17 11 4 4 2 2 12 6 . . . . . Class Distribution -------------------- 18% | Construct 13% | Mutant 13% | Hacker-Construct 8% | Skirmisher 8% | Commander-Construct 7% | Scavenger-Gunner 7% | Scavenger-Tank 6% | Tank Dominant Class ---------------- Mutant | -10/Materials Mutant | -10/Subcaves Subdweller-Tank | -8/Materials Tank | -8/Garrison Scavenger-Tank | -8/Materials Skirmisher | -7/Factory Skirmisher | -7/Storage Commander-Construct | -7/Recycling Commander-Construct | -5/Factory Construct | -5/Garrison Hacker-Construct | -5/Factory Hacker-Construct | -5/Upper Caves Construct | -5/Upper Caves Commander-Construct | -5/Warlord Construct | -4/Proximity Caves Construct | -4/Factory Hacker-Construct | -3/Research Hacker-Tank | -3/Quarantine Scavenger-Gunner | -3/Section 7 Scavenger-Sprinter | -2/Research Scavenger-Scout | -1/Access Scavenger-Gunner | -1/Command Resources | -11 -10 -10 -8 -8 -8 -7 -7 -7 -5 -5 -5 -5 -5 -5 -4 -4 -3 -3 -3 -2 -1 -1 ----------- Run | Yrd Mat Sub Mat Gar Mat Fac Sto Rec Fac Gar Fac Upp Upp War Pro Fac Res Qua Sec Res Acc Com Matter Collected 13337 | 209 381 570 157 731 1108 359 412 89 40 827 349 244 312 114 421 1172 697 236 1019 1157 935 1798 Remotely 231 | . . . . . . . . . . . . . . . . . . . . . . 231 Salvage Created 18860 | . 553 283 118 635 1641 747 943 405 . 1215 665 124 230 145 376 2114 2460 881 2200 600 1257 1268 Parts 867 | . 33 23 8 34 98 33 42 18 . 59 20 7 15 4 18 95 79 49 115 41 53 23 Haulers Intercepted 6 | . 2 . . . 2 1 . . . . . . . . . . . . . . 1 . Recyclers Shooed 6 | . . . . . 2 1 1 . . . 1 . . . . . . . . . . 1 Parts Field Recycled . | . . . . . . . . . . . . . . . . . . . . . . . Retrieved Matter . | . . . . . . . . . . . . . . . . . . . . . . . Parts Self-Destructed 45 | . . 13 . . . . . . . . . 4 10 . 18 . . . . . . . Prevented . | . . . . . . . . . . . . . . . . . . . . . . . Parts Restored . | . . . . . . . . . . . . . . . . . . . . . . . Kills | -11 -10 -10 -8 -8 -8 -7 -7 -7 -5 -5 -5 -5 -5 -5 -4 -4 -3 -3 -3 -2 -1 -1 ------- Run | Yrd Mat Sub Mat Gar Mat Fac Sto Rec Fac Gar Fac Upp Upp War Pro Fac Res Qua Sec Res Acc Com Combat Hostiles Destroyed 352 | . 13 15 2 25 29 9 17 7 . 29 10 7 9 4 8 40 53 8 28 8 23 8 Guns 92 | . 8 . . 1 12 3 . . . . . 1 2 . . 8 9 2 19 8 13 6 Cannons 145 | . . 4 2 16 17 6 16 7 . 21 7 . 1 . 7 19 9 4 4 . 3 2 AOE 100 | . 5 11 . 8 . . . . . 8 . 6 6 4 1 13 31 . . . 7 . Classes Destroyed 26 | . 8 3 1 4 1 . . . . 1 . . . . 2 . 2 1 2 . . 1 Worker 18 | . 1 . . . 1 3 3 . . . . . . . . 1 2 1 . . 4 2 Builder 15 | . . . 1 . 4 . . . . . . . . . . 4 3 . . . 3 . Tunneler 2 | . 1 . . . . . . . . . . . . . . . . . . . 1 . Hauler 6 | . 2 . . . 2 1 . . . . . . . . . . . . . . 1 . Recycler 14 | . 3 . . . 2 3 . . . . . . . . . 2 1 1 . . 1 1 Mechanic 2 | . . . . . . . . . . . . . . . . . 1 . 1 . . . Operator 10 | . 1 . . . 1 1 . . . . . . . . . 1 1 2 1 2 . . Drone 8 | . . . . . . . . . . . . . . . 2 . . . . . 6 . Turret 2 | . . 2 . . . . . . . . . . . . . . . . . . . . Watcher 17 | . 1 . 1 1 5 4 1 . . . . . . . . 2 1 1 . . . . Swarmer 71 | . 11 5 . 6 2 . . 1 . 8 . 4 4 3 . 8 8 . 2 . 8 1 Saboteur 2 | . . . . . . . . . . . . . . . . . 1 . 1 . . . Grunt 112 | . 2 2 2 10 7 2 14 . . 13 3 . 5 1 1 12 19 3 8 . 5 3 Brawler 11 | . . . . 1 5 1 . 1 . . . . . . . . 2 . 1 . . . Duelist 12 | . . . . 3 4 . . 1 . . . . . . . 1 2 . 1 . . . Protector 6 | . . . . . 1 . . . . . 1 . . . 1 . 1 . . 1 . 1 Researcher 4 | . . . . . . . . . . . . . . . . . . 3 1 . . . Sentry 48 | . . 1 . 2 9 2 1 2 . 5 2 . . . 1 6 7 . 6 2 . 2 Demolisher 3 | . . . . . . . . . . . . . . . 3 . . . . . . . Hunter 21 | . . . . 1 1 . . . . . 2 2 . . . 6 3 2 . 1 3 . Programmer 43 | . . . . 2 . 4 2 1 . 2 2 1 . . . 6 9 3 7 3 1 . Behemoth 3 | . . . . . . . . . . 1 . . . . . 1 1 . . . . . Striker 1 | . . . . . . . . . . . . . . . . . . . 1 . . . Executioner 2 | . . . . . . . . . . . . . . . . . . . 1 1 . . Subdweller 8 | . . 7 . . . . . 1 . . . . . . . . . . . . . . Thug 1 | . . . . . . . . . . . . . . 1 . . . . . . . . Fireman 2 | . . . . . . . . . . . . . . . . . . . . . . 2 Best Kill Streak 18 | . 8 6 3 6 9 3 11 2 . 4 2 4 5 4 2 12 18 8 11 2 12 3 Combat Bots Only 14 | . 5 4 2 5 9 3 10 2 . 4 2 4 5 4 2 10 14 4 11 2 8 3 Max Kills in Single Turn 6 | . 5 2 1 4 2 1 2 1 . 3 1 4 4 4 1 6 5 5 2 1 5 2 Gunslinging 1 | . 1 . . . . . . . . . . . . . . . . . . . . . Exploded 5 | . 4 2 . 4 . . . . . 3 . 4 3 3 1 5 5 . . . 4 . Melee . | . . . . . . . . . . . . . . . . . . . . . . . Uniques/NPCs Destroyed 1 | . . . . . . . . . . . . . . . . . . . . . . 1 MAIN.C Shell (-1/Command) Combat | -11 -10 -10 -8 -8 -8 -7 -7 -7 -5 -5 -5 -5 -5 -5 -4 -4 -3 -3 -3 -2 -1 -1 -------- Run | Yrd Mat Sub Mat Gar Mat Fac Sto Rec Fac Gar Fac Upp Upp War Pro Fac Res Qua Sec Res Acc Com Hostile Shots Fired 2315 | . 46 50 11 127 137 70 75 25 7 220 120 43 39 9 10 213 363 120 218 14 184 214 Missed 799 | . 16 18 2 40 36 29 26 13 3 66 36 8 7 2 1 69 120 54 110 7 69 67 Hits 1516 | . 30 32 9 87 101 41 49 12 4 154 84 35 32 7 9 144 243 66 108 7 115 147 Melee 31 | . . . . 4 17 1 . . 2 . . . . . . . 7 . . . . . Projectile 1485 | . 30 32 9 83 84 40 49 12 2 154 84 35 32 7 9 144 236 66 108 7 115 147 AOE 13 | . . 1 . . . . . . . . . . . 1 6 . 1 . . . . 4 Critical Strikes 87 | . 1 1 . 7 6 5 1 . . 7 5 2 5 1 . 6 16 4 6 . 3 11 Actively Blocked 15 | . . . . 1 . . . . . . . . . . . . 2 . . . 1 11 Part Disruptions 3 | . . . . . . . . . . . . . . . . . . . 1 1 . 1 Damage Taken 34971 | . 298 713 132 1438 1903 591 731 85 97 3473 1817 807 617 185 478 3248 5679 1246 2694 235 2212 6292 Core 4549 | . 41 165 . 154 183 69 87 3 19 302 170 116 78 34 . 284 718 106 359 77 221 1363 Absorbed by Shields 106 | . . . . . . . . 12 16 8 . . 4 . 14 52 . . . . . . Redirected to Shielding 13 | . . . . 13 . . . . . . . . . . . . . . . . . . Regen/Repaired (Parts) 6596 | . . . . . . . . 5 . 1590 1045 343 286 254 276 1528 1269 . . . . . Core Remaining (%) 53 | 100 . 17 . . 38 . . 77 . . . . . . 28 75 . . . 94 . . Volleys Fired 1134 | . 40 30 9 88 80 51 50 11 5 122 58 21 21 3 43 106 101 51 100 33 56 55 Largest 5 | . 2 2 3 3 3 3 3 3 1 3 2 1 2 1 1 3 3 2 3 4 5 5 Hottest 540 | . 80 160 147 165 165 180 90 158 158 146 134 64 137 39 108 194 160 540 300 194 210 189 Shots Fired 2037 | . 76 44 22 165 208 120 127 27 5 131 84 21 24 3 43 128 145 52 189 101 155 167 Gun 931 | . 66 5 5 2 94 53 . . . 2 . 6 21 . . 63 66 28 161 101 113 145 Cannon 1028 | . 6 22 17 154 114 67 127 27 5 120 84 11 1 . 43 60 60 24 28 . 36 22 Launcher 78 | . 4 17 . 9 . . . . . 9 . 4 2 3 . 5 19 . . . 6 . Special . | . . . . . . . . . . . . . . . . . . . . . . . Kinetic 1187 | . 66 19 18 113 133 56 . . . 64 66 . 19 . 32 48 7 . 135 98 149 164 Thermal 540 | . 6 22 4 52 75 64 127 25 . 58 . 6 3 . . 16 15 29 32 3 . 3 Explosive 53 | . 4 3 . . . . . . . 9 . 4 2 3 . 5 17 . . . 6 . Electromagnetic 157 | . . . . . . . . 2 5 . 18 11 . . . . 77 22 22 . . . Entropic 100 | . . . . . . . . . . . . . . . 11 59 29 1 . . . . Robot Hit Streak 32 | . 9 8 4 8 10 9 11 14 2 11 10 4 9 4 4 13 9 11 21 14 17 32 Robot Miss Streak 6 | . 4 1 3 4 5 3 1 1 3 3 2 4 3 . 6 5 5 2 3 6 6 4 Penetration Max 4 | . . . . . . . . . . 1 1 . . . . 1 2 4 1 1 2 2 Secondary Targets 9 | . 2 . . . . . . . . . . . . . . . . . 5 1 . 1 Max Gunslinging Chain 1 | . 1 . . . . . . . . . . . . . . . . . 1 1 . 1 Shots Hit Robots 1195 | . 41 26 12 72 111 65 80 17 2 77 54 15 14 3 16 78 94 31 132 50 81 124 Core Hits 777 | . 29 28 6 37 55 31 33 8 1 66 14 19 25 13 8 63 121 14 66 28 50 62 Critical Kills 25 | . 1 . . . 3 . 1 . . . 1 . . . . . . 2 5 3 6 3 Critical Parts Destroyed 31 | . . . . . 2 . . . . . 1 . 1 . . 2 5 3 2 4 7 4 Critical Strikes 76 | . 1 . 1 3 9 . 1 . . 2 2 . 1 . . 3 6 5 8 7 14 13 Burn 3 | . . . . . . . . . . 2 . . . . . 1 . . . . . . Meltdown 2 | . . . . . 1 . 1 . . . . . . . . . . . . . . . Destroy 50 | . 1 . . . 4 . . . . . 2 . 1 . . . . 5 7 7 13 10 Blast 12 | . . . 1 3 4 . . . . . . . . . . . . . . . 1 3 Corrupt 2 | . . . . . . . . . . . . . . . . . 1 . 1 . . . Detonate 7 | . . . . . . . . . . . . . . . . 2 5 . . . . . Melee Attacks . | . . . . . . . . . . . . . . . . . . . . . . . Impact . | . . . . . . . . . . . . . . . . . . . . . . . Slashing . | . . . . . . . . . . . . . . . . . . . . . . . Piercing . | . . . . . . . . . . . . . . . . . . . . . . . Sneak Attacks . | . . . . . . . . . . . . . . . . . . . . . . . Combat Hostiles . | . . . . . . . . . . . . . . . . . . . . . . . Follow-up Attacks . | . . . . . . . . . . . . . . . . . . . . . . . Damage Inflicted 66895 | . 902 1790 286 2550 3069 1771 2466 585 88 5014 2371 1115 979 811 1684 9827 12733 2415 5488 2227 4790 3934 Guns 20110 | . 430 23 65 47 1375 731 . . . 38 . 138 358 . . 1667 2372 627 4067 2227 2915 3030 Cannons 27195 | . 35 276 221 1529 1694 1040 2466 585 88 3816 2371 359 26 . 1579 4534 1772 1788 1356 . 756 904 Explosions 19590 | . 437 1491 . 974 . . . . . 1160 . 618 595 811 105 3626 8589 . 65 . 1119 . Melee . | . . . . . . . . . . . . . . . . . . . . . . . Ramming . | . . . . . . . . . . . . . . . . . . . . . . . Kinetic 26364 | . 430 1374 205 2190 2060 987 . . . 2416 1745 . 356 . 179 1096 145 . 3523 2147 3671 3840 Thermal 13657 | . 35 276 81 360 1009 784 2466 494 . 1438 . 138 28 . 105 1797 1786 1634 1052 80 . 94 Explosive 11906 | . 437 140 . . . . . . . 1160 . 618 595 811 . 2093 4868 . 65 . 1119 . Electromagnetic 5355 | . . . . . . . . 91 88 . 626 359 . . . . 2605 738 848 . . . Impact . | . . . . . . . . . . . . . . . . . . . . . . . Slashing . | . . . . . . . . . . . . . . . . . . . . . . . Piercing . | . . . . . . . . . . . . . . . . . . . . . . . Entropic 9613 | . . . . . . . . . . . . . . . 1400 4841 3329 43 . . . . Highest Corruption 20 | . . . . 1 7 1 3 3 . 2 8 10 10 10 . 4 4 2 16 1 4 20 Average Corruption 4 | . . . . 1 2 1 1 1 . 1 5 9 10 10 . 2 3 1 8 1 2 6 Corruption Purged 10 | . . . . . 3 . . 3 . . . . . . . . 4 . . . . . Corruption Blocked 20 | . . . . . . . . . . . . . . . . . 10 10 . . . . Effects 276 | . . . . 1 20 11 8 4 . 27 27 32 34 2 . 7 12 3 39 5 13 31 Message Errors 65 | . . . . 1 3 5 1 1 . 4 8 7 9 . . 1 1 1 12 2 4 5 Matter Fused 80 | . . . . . 8 . 4 1 . 11 8 11 7 2 . 2 6 . 5 1 4 10 Heat Flow Errors 26 | . . . . . 1 1 1 1 . 3 1 3 2 . . 1 1 1 5 1 1 3 Energy Discharges 24 | . . . . . 2 . 1 . . 1 3 4 6 . . . 2 . 3 . . 2 Parts Rejected 5 | . . . . . . . . . . 1 1 . 1 . . . . . . . . 2 Parts Fused 4 | . . . . . . . . . . . . 1 1 . . . . . 2 . . . Data Loss (minor) 30 | . . . . . 1 2 1 1 . 3 5 4 4 . . 1 1 . 1 . 4 2 Data Loss (major) 15 | . . . . . 3 . . . . 2 1 . 3 . . 2 . . 3 . . 1 Misfires 5 | . . . . . . 2 . . . 1 . . . . . . . . . . . 2 Alerts 8 | . . . . . 2 . . . . 1 . 2 . . . . . 1 1 . . 1 Misdirections 3 | . . . . . . . . . . . . . . . . . . . 2 . . 1 Weapon Failures 11 | . . . . . . 1 . . . . . . 1 . . . 1 . 5 1 . 2 Overload Shots 41 | . . . . . . . . . . . . . . . . . 11 13 17 . . . Effects 1 | . . . . . . . . . . . . . . . . . . 1 . . . . Energy Bleed 1 | . . . . . . . . . . . . . . . . . . 1 . . . . Overflow Damage 3034 | . 51 28 . 165 29 20 41 11 . 153 114 13 . . 111 1032 566 536 5 . 132 27 Projectiles 1885 | . . . . 6 29 20 41 11 . 121 114 13 . . 111 757 41 536 5 . 53 27 Explosions 1149 | . 51 28 . 159 . . . . . 32 . . . . . 275 525 . . . 79 . Melee . | . . . . . . . . . . . . . . . . . . . . . . . Knockbacks 68 | . . . 3 18 4 7 . . . 14 10 . . . 2 2 . . . . 6 2 Impact . | . . . . . . . . . . . . . . . . . . . . . . . Kinetic 57 | . . . 3 16 4 6 . . . 10 8 . . . 2 2 . . . . 4 2 Secondary 11 | . . . . 2 . 1 . . . 4 2 . . . . . . . . . 2 . Self-Inflicted Damage 1601 | . 43 107 . 113 . . . . . 129 . 102 27 . 64 478 326 . 96 . 116 . Shots 41 | . 2 3 . 4 . . . . . 5 . 5 1 . 1 10 6 . 1 . 3 . Rammed . | . . . . . . . . . . . . . . . . . . . . . . . Targets Rammed . | . . . . . . . . . . . . . . . . . . . . . . . Kicked . | . . . . . . . . . . . . . . . . . . . . . . . Crushed . | . . . . . . . . . . . . . . . . . . . . . . . Highest Temperature 436 | . 54 84 334 288 307 395 214 181 168 436 308 349 283 . 276 198 284 258 354 171 216 209 Average Temperature 91 | . 15 24 221 82 80 110 57 40 82 129 105 168 83 . 90 86 96 66 103 42 67 35 Received Heat Transfer 4803 | . 18 81 81 522 657 213 357 21 18 1011 252 54 198 45 9 340 629 69 96 . 18 114 Effects 20 | . . . 4 1 . 2 . . . 5 . 3 1 . . . 4 . . . . . Shutdowns 2 | . . . . . . . . . . 2 . . . . . . . . . . . . Energy Bleed 8 | . . . 1 1 . 1 . . . 3 . 1 . . . . 1 . . . . . Interference 8 | . . . 3 . . . . . . . . 1 1 . . . 3 . . . . . Damage (minor) 2 | . . . . . . 1 . . . . . 1 . . . . . . . . . . Siege Activations . | . . . . . . . . . . . . . . . . . . . . . . . Martial Activations . | . . . . . . . . . . . . . . . . . . . . . . . Shielding Activations . | . . . . . . . . . . . . . . . . . . . . . . . Robots Disrupted . | . . . . . . . . . . . . . . . . . . . . . . . Combat Hostiles . | . . . . . . . . . . . . . . . . . . . . . . . Robots Corrupted 16 | . . . . . . . . . . . 3 . . . . . 4 2 6 . 1 . Combat Hostiles 14 | . . . . . . . . . . . 3 . . . . . 4 2 5 . . . Parts Fried 38 | . . . . . . . . . . . 6 . . . . . 16 3 12 . 1 . Impact Corruptions 2 | . . . . . . . . . . 1 . . . . . . . . . . 1 . Robots Melted 2 | . . . . . 1 . 1 . . . . . . . . . . . . . . . Combat Hostiles 1 | . . . . . . . 1 . . . . . . . . . . . . . . . Parts Melted 20 | . . . . 1 2 . 8 4 . 1 . . . . . 2 . . 1 . 1 . Heat Transferred 12953 | . 74 444 111 407 1249 1184 3367 666 . 1315 . 148 37 . 80 1250 1235 557 644 74 . 111 Parts Sabotaged 3 | . . . . . . . . . . . . . . . . . 3 . . . . . Parts Stolen . | . . . . . . . . . . . . . . . . . . . . . . . Parts Stripped . | . . . . . . . . . . . . . . . . . . . . . . . Power Chain Reactions 3 | . . . . . . . . . . . . . . . . 1 2 . . . . . Alert | -11 -10 -10 -8 -8 -8 -7 -7 -7 -5 -5 -5 -5 -5 -5 -4 -4 -3 -3 -3 -2 -1 -1 ------- Run | Yrd Mat Sub Mat Gar Mat Fac Sto Rec Fac Gar Fac Upp Upp War Pro Fac Res Qua Sec Res Acc Com Maximum Alert Level 5 | . 1 . . 4 3 1 1 . . 5 5 . . . . 5 5 4 5 5 5 4 Low Security (%) 28 | 100 93 . 100 24 . 86 48 100 100 7 . . . . . . . . . . . . Level 1 6 | . 6 . . 12 . 13 51 . . 14 . . . . . . . . . . . . Level 2 7 | . . . . 24 54 . . . . 4 . . . . . . . . . . . . Level 3 20 | . . . . 30 45 . . . . 12 . . . . . 63 9 . 60 . . 64 Level 4 14 | . . . . 7 . . . . . 21 5 . . . . 28 44 100 . . 51 35 Level 5 14 | . . . . . . . . . . 40 94 . . . . . 12 . . 14 44 . High Security 6 | . . . . . . . . . . . . . . . . 8 34 . . 85 4 . Max Security 2 | . . . . . . . . . . . . . . . . . . . 39 . . . Peak Influence 3345 | . 220 . 57 1269 851 293 371 141 169 2779 2381 . . . . 1915 2757 1594 3345 2213 1843 1216 Initial 1881 | . . . . 30 618 293 . 141 50 39 1458 . . . . 908 1100 1545 776 1881 1327 1157 Average 928 | . 104 . 11 589 700 78 150 25 106 1346 1989 . . . . 1116 1603 1461 1461 2015 1503 1083 Influence Increases 19099 | . 427 255 95 1289 970 375 567 197 247 2940 1473 230 200 229 115 2911 2077 431 2406 422 954 289 Destroy 0b10 Robot/C 8480 | . 260 200 40 500 560 180 340 120 100 860 680 140 180 180 100 800 1040 220 1240 140 460 140 Destroy 0b10 Robot/NC 565 | . 45 . 10 5 80 60 20 5 . . 75 . . . 15 50 50 25 40 15 50 20 Destroy Leader 1360 | . 56 10 12 20 164 80 62 . 20 40 184 30 20 . . 164 172 22 192 40 42 30 Allied During Kill 814 | . . . . . . . . 20 44 195 218 . . 49 . . . . 286 2 . . Trap Triggered on 0b10 40 | . . . . . 20 . . . . . 20 . . . . . . . . . . . Successful Hack 416 | . 19 . 12 44 19 30 23 40 14 36 18 . . . . 66 48 19 16 . . 12 Disable Machine 1095 | . 15 . . 90 45 . 75 . 15 30 60 . . . . 285 120 105 165 15 60 15 Anti-Garrison Action 1700 | . . . . 400 . . . . . 1150 . . . . . 150 . . . . . . Destroy Structure 2224 | . 17 . 6 125 52 25 17 12 4 464 218 . . . . 316 392 10 92 150 312 12 Advance Influence 950 | . . . . . . . . . 50 . . . . . . 900 . . . . . . Partial Spotted 165 | . . . . . 15 . . . . . . . . . . . 15 . 60 60 15 . Lose Combat Pursuer 1290 | . 15 45 15 105 15 . 30 . . 165 . 60 . . . 180 240 30 315 . 15 60 Influence Decreases 18943 | . 349 333 48 67 1593 1021 204 560 190 218 1879 1275 649 1016 193 1010 1340 1798 1020 1554 1358 1268 Entered New Map 10447 | . . 38 . 17 651 353 . 222 . 18 1321 879 253 879 92 6 910 1202 604 1464 886 652 Time Decay 5668 | . 339 241 48 . 562 474 184 308 90 . 478 386 386 37 101 514 230 246 286 60 342 356 Search Patrol Dispatched 300 | . . . . . . . . . . . . . . . . 300 . . . . . . Lost Part 1094 | . 10 54 . 50 80 . 20 10 . 60 . 10 10 . . 40 190 50 110 10 130 260 Lost Ally 490 | . . . . . . . . 20 100 140 80 . . 100 . . 10 . 20 20 . . Purge Threat 944 | . . . . . 300 194 . . . . . . . . . 150 . 300 . . . . Squads Dispatched 121 | . 1 . 2 . 8 6 4 . 3 . 23 . . . . 13 15 4 24 2 10 6 Investigation 13 | . . . . . 1 2 1 . 2 . 3 . . . . 1 . . . 1 1 1 Extermination 19 | . . . . . . 4 2 . 1 . 3 . . . . 2 1 1 1 . 2 2 Reinforcement 25 | . 1 . 1 . 1 . 1 . . . 4 . . . . 4 3 1 2 1 4 2 Assault 52 | . . . . . 3 . . . . . 7 . . . . 6 9 2 21 . 3 1 Garrison 12 | . . . 1 . 3 . . . . . 6 . . . . . 2 . . . . . Intercept . | . . . . . . . . . . . . . . . . . . . . . . . Searches Triggered 3 | . . . . . . . . . . . . . . . . 3 . . . . . . Construction Impeded 8 | . . . . . 1 . . . . . 2 . . . . 1 3 . . . 1 . Haulers Reinforced 3 | . . . . . . . 1 . . . . . . . . . . . . . 2 . Active Scanning Responses . | . . . . . . . . . . . . . . . . . . . . . . . Cargo Convoy Interrupts . | . . . . . . . . . . . . . . . . . . . . . . . Stealth | -11 -10 -10 -8 -8 -8 -7 -7 -7 -5 -5 -5 -5 -5 -5 -4 -4 -3 -3 -3 -2 -1 -1 --------- Run | Yrd Mat Sub Mat Gar Mat Fac Sto Rec Fac Gar Fac Upp Upp War Pro Fac Res Qua Sec Res Acc Com Distress Signals 46 | . 1 . . 3 1 . . 1 . . 6 . . 2 11 4 3 . 2 7 3 2 Communications Jammed . | . . . . . . . . . . . . . . . . . . . . . . . Distress Signals . | . . . . . . . . . . . . . . . . . . . . . . . Times Spotted 711 | . 23 22 4 30 44 18 22 3 4 44 28 10 9 18 15 66 81 18 134 34 50 34 Peak Tracking Total 22 | . 6 6 4 6 9 4 9 1 4 8 7 4 5 6 4 10 18 4 22 8 10 10 Tactical Retreats 48 | . 1 1 1 2 1 . 2 . . 4 . 2 . . . 6 10 1 9 . 5 3 ECM-based Alert Blocks 6 | . . . . . . . . . . . . . . . . . . . . . 6 . Traps | -11 -10 -10 -8 -8 -8 -7 -7 -7 -5 -5 -5 -5 -5 -5 -4 -4 -3 -3 -3 -2 -1 -1 ------- Run | Yrd Mat Sub Mat Gar Mat Fac Sto Rec Fac Gar Fac Upp Upp War Pro Fac Res Qua Sec Res Acc Com Traps Triggered 23 | . . 2 . 5 1 2 . . 1 5 2 . . . 1 1 . . . . 1 2 Indirectly . | . . . . . . . . . . . . . . . . . . . . . . . Trap Hack Attempts . | . . . . . . . . . . . . . . . . . . . . . . . Triggered . | . . . . . . . . . . . . . . . . . . . . . . . Disarmed . | . . . . . . . . . . . . . . . . . . . . . . . Reprogrammed 9 | . . . . . 4 . . . . . 5 . . . . . . . . . . . Reused 4 | . . . . . 2 . . . . . 2 . . . . . . . . . . . Traps Extracted . | . . . . . . . . . . . . . . . . . . . . . . . Installed 2 | . . . . . 2 . . . . . . . . . . . . . . . . . Triggered 4 | . . . . . 2 . . . . . 2 . . . . . . . . . . . Most Traps Carried 2 | . . 2 2 2 2 . . . . . . . . . . . . . . . . . Machines | -11 -10 -10 -8 -8 -8 -7 -7 -7 -5 -5 -5 -5 -5 -5 -4 -4 -3 -3 -3 -2 -1 -1 ---------- Run | Yrd Mat Sub Mat Gar Mat Fac Sto Rec Fac Gar Fac Upp Upp War Pro Fac Res Qua Sec Res Acc Com Machines Disabled 100 | . 1 5 . 11 3 . 5 . 1 10 4 . . . 4 20 8 7 15 1 4 1 Max in Single Turn 5 | . 1 3 . 1 1 . 1 . 1 2 1 . . . 2 5 2 1 2 1 1 1 Garrison Access 4 | . . . . . 1 . . . . . . . . . . 1 1 . 1 . . . Garrison Relay 8 | . . . . 4 . . . . . 4 . . . . . . . . . . . . Phase Generator 1 | . . . . . . . . . . 1 . . . . . . . . . . . . Energy Cycler 1 | . . . . . . . . . . . . . . . . . . . . . 1 . Machines Repaired . | . . . . . . . . . . . . . . . . . . . . . . . Machines Dismantled . | . . . . . . . . . . . . . . . . . . . . . . . Machines Sabotaged . | . . . . . . . . . . . . . . . . . . . . . . . Overloaded Fab Kills . | . . . . . . . . . . . . . . . . . . . . . . . Hacking | -11 -10 -10 -8 -8 -8 -7 -7 -7 -5 -5 -5 -5 -5 -5 -4 -4 -3 -3 -3 -2 -1 -1 --------- Run | Yrd Mat Sub Mat Gar Mat Fac Sto Rec Fac Gar Fac Upp Upp War Pro Fac Res Qua Sec Res Acc Com Machines Accessed 103 | . 5 1 2 4 10 10 4 10 2 3 7 . 1 7 . 6 6 7 10 2 2 4 Terminals 61 | . 4 . . 4 8 5 4 4 . 3 4 . . . . 3 2 7 8 1 . 4 Fabricators 3 | . . . . . . 1 . . . . 1 . . . . 1 . . . . . . Repair Stations . | . . . . . . . . . . . . . . . . . . . . . . . Recycling Units 13 | . 1 . . . 1 1 . 5 1 . 1 . . . . 1 2 . . . . . Scanalyzers 8 | . . . 1 . . 3 . . . . 1 . . . . . 1 . 1 . 1 . Garrison Access 8 | . . . 1 . 1 . . . 1 . . . . . . 1 1 . 1 1 1 . Total Hacks 248 | . 20 1 4 8 34 26 7 23 4 7 19 . 1 8 . 23 8 19 23 5 3 5 Successful 121 | . 11 1 2 3 16 11 5 12 2 3 6 . 1 8 . 12 4 11 11 . . 2 Failed 125 | . 9 . 1 5 18 15 2 11 2 4 13 . . . . 11 4 8 11 5 3 3 Catastrophic 24 | . . . . 1 . 1 . 1 2 . 4 . . . . 3 2 2 4 2 1 1 Database Lockouts 2 | . . . 1 . . . . . . . . . . . . . . . 1 . . . Manual 80 | . 12 . . . 21 9 5 2 . 1 9 . . . . 7 . 8 3 3 . . Terminals 165 | . 17 . . 8 30 12 7 11 . 7 13 . . . . 13 3 19 17 3 . 5 Fabricators 10 | . . . . . . 5 . . . . 2 . . . . 3 . . . . . . Repair Stations . | . . . . . . . . . . . . . . . . . . . . . . . Recycling Units 23 | . 3 . . . 1 1 . 8 2 . 2 . . . . 4 2 . . . . . Scanalyzers 18 | . . . 3 . . 8 . . . . 2 . . . . . 1 . 3 . 1 . Garrison Access 18 | . . . 1 . 3 . . . 2 . . . . . . 3 2 . 3 2 2 . Terminal Hacks 76 | . 5 1 . 3 9 3 4 9 . 3 3 . 1 8 . 6 1 10 8 . . 2 Record 13 | . . . . . . . . 2 . . . . . 7 . . . 4 . . . . Part Schematic 2 | . . . . . . . . 1 . . . . . . . 1 . . . . . . Robot Analysis 3 | . 2 . . . . . . 1 . . . . . . . . . . . . . . Open Door 10 | . . . . . . . 3 . . . . . 1 1 . . . 1 3 . . 1 Level Access Points 2 | . . . . . . . . . . . . . . . . . 1 . 1 . . . Branch Access Points 3 | . . . . . 1 . 1 . . . . . . . . . . 1 . . . . Emergency Access Points 2 | . . . . 1 . . . . . 1 . . . . . . . . . . . . Machine Index 1 | . . . . . . . . . . . . . . . . . . . 1 . . . Terminal Index 1 | . . . . . . . . 1 . . . . . . . . . . . . . . Alert Level 5 | . . . . . 1 . . 1 . . 1 . . . . . . 1 1 . . . Unreport Threat 7 | . . . . . 2 2 . . . . . . . . . 1 . 2 . . . . Locate Traps 7 | . 2 . . . 2 . . . . . 1 . . . . 2 . . . . . . Reprogram Traps 2 | . . . . . 1 . . . . . 1 . . . . . . . . . . . Hauler Manifests 1 | . 1 . . . . . . . . . . . . . . . . . . . . . Registered Prototypes 1 | . . . . . . 1 . . . . . . . . . . . . . . . . Zone Layout 7 | . . . . . 2 . . 1 . . . . . . . 2 . 1 1 . . . Garrison Registry 1 | . . . . 1 . . . . . . . . . . . . . . . . . . Patrol Navigation 1 | . . . . . . . . . . 1 . . . . . . . . . . . . Security Stations 2 | . . . . 1 . . . . . 1 . . . . . . . . . . . . Proto ID Catalog 1 | . . 1 . . . . . . . . . . . . . . . . . . . . Activate Exoskeleton 1 | . . . . . . . . . . . . . . . . . . . 1 . . . Disengage Seal 1 | . . . . . . . . . . . . . . . . . . . . . . 1 Release Object 2 | . . . . . . . . 2 . . . . . . . . . . . . . . Fabricator Hacks 4 | . . . . . . 1 . . . . 1 . . . . 2 . . . . . . Network Status 3 | . . . . . . 1 . . . . 1 . . . . 1 . . . . . . Build 1 | . . . . . . . . . . . . . . . . 1 . . . . . . Repair Station Hacks . | . . . . . . . . . . . . . . . . . . . . . . . Recycling Unit Hacks 10 | . 1 . . . 1 1 . 3 1 . 1 . . . . 1 1 . . . . . Retrieve Components 10 | . 1 . . . 1 1 . 3 1 . 1 . . . . 1 1 . . . . . Scanalyzer 5 | . . . 1 . . 2 . . . . . . . . . . 1 . 1 . . . Retrieve Study 5 | . . . 1 . . 2 . . . . . . . . . . 1 . 1 . . . Garrison Access Hacks 5 | . . . 1 . 1 . . . 1 . . . . . . . 1 . 1 . . . Unlock Access 2 | . . . 1 . . . . . 1 . . . . . . . . . . . . . Seal Access 3 | . . . . . 1 . . . . . . . . . . . 1 . 1 . . . Unauthorized Hacks 21 | . 5 . . . 5 4 1 . . . 1 . . . . 3 . 1 1 . . . Terminals 19 | . 5 . . . 5 3 1 . . . 1 . . . . 2 . 1 1 . . . Assimilate 1 | . 1 . . . . . . . . . . . . . . . . . . . . . Botnet 17 | . 3 . . . 5 3 1 . . . 1 . . . . 2 . 1 1 . . . Operators 1 | . 1 . . . . . . . . . . . . . . . . . . . . . Fabricators 2 | . . . . . . 1 . . . . . . . . . 1 . . . . . . Fabnet 2 | . . . . . . 1 . . . . . . . . . 1 . . . . . . Repair Stations . | . . . . . . . . . . . . . . . . . . . . . . . Recycling Units . | . . . . . . . . . . . . . . . . . . . . . . . Scanalyzers . | . . . . . . . . . . . . . . . . . . . . . . . Garrison Access . | . . . . . . . . . . . . . . . . . . . . . . . Data Cores Recovered 5 | . . . . . 1 . . . . . . . . . . . 1 2 . 1 . . Used 5 | . . . . . 1 . . . . . . . . . . . 1 2 . 1 . . Hacking Detections 76 | . 5 . 1 3 9 10 2 7 2 3 7 . . . . 4 5 5 6 2 2 3 Full Trace Events 11 | . . . . . 1 1 1 1 1 1 2 . . . . 1 . . . 1 1 . Feedback Events 3 | . . . . . . 1 1 . . . . . . . . . . . . . 1 . Corruption 3 | . . . . . . 1 1 . . . . . . . . . . . . . 1 . Feedback Blocked . | . . . . . . . . . . . . . . . . . . . . . . . Robot Schematics Acquired 2 | . . . . . . . . . . . . . . . . . . 1 1 . . . Robots Built 1 | . . . . . . . . . . . . . . . . 1 . . . . . . Authchips . | . . . . . . . . . . . . . . . . . . . . . . . Time 187 | . . . . . . . . . . . . . . . . 187 . . . . . . Total Robot Build Rating 7 | . . . . . . . . . . . . . . . . 7 . . . . . . Part Schematics Acquired 16 | . . . . . . . . 1 . . . . . . . 1 . 11 3 . . . Parts Built . | . . . . . . . . . . . . . . . . . . . . . . . Authchips . | . . . . . . . . . . . . . . . . . . . . . . . Time . | . . . . . . . . . . . . . . . . . . . . . . . Total Part Build Rating . | . . . . . . . . . . . . . . . . . . . . . . . Part Studies Acquired 5 | . . . 1 . . 2 . . . . . . . . . . 1 . 1 . . . Parts Repaired . | . . . . . . . . . . . . . . . . . . . . . . . Time . | . . . . . . . . . . . . . . . . . . . . . . . Parts Recycled . | . . . . . . . . . . . . . . . . . . . . . . . Recycled Matter . | . . . . . . . . . . . . . . . . . . . . . . . Retrieved Matter . | . . . . . . . . . . . . . . . . . . . . . . . Retrieved Components 34 | . 1 . . . 10 7 . 11 . . 1 . . . . 2 2 . . . . . Parts Scanalyzed . | . . . . . . . . . . . . . . . . . . . . . . . Part Schematics Acquired . | . . . . . . . . . . . . . . . . . . . . . . . Parts Damaged . | . . . . . . . . . . . . . . . . . . . . . . . Bothacking | -11 -10 -10 -8 -8 -8 -7 -7 -7 -5 -5 -5 -5 -5 -5 -4 -4 -3 -3 -3 -2 -1 -1 ------------ Run | Yrd Mat Sub Mat Gar Mat Fac Sto Rec Fac Gar Fac Upp Upp War Pro Fac Res Qua Sec Res Acc Com Used RIF Installer . | . . . . . . . . . . . . . . . . . . . . . . . Robots Hacked 1 | . . . . . . . . . . . . . . 1 . . . . . . . . Non-combat . | . . . . . . . . . . . . . . . . . . . . . . . Combat 1 | . . . . . . . . . . . . . . 1 . . . . . . . . Robot Hacks Applied . | . . . . . . . . . . . . . . . . . . . . . . . Relay Couplers Released 34 | . . . . 16 . . . . . 16 . . . . . 2 . . . . . . Machine Destruction 34 | . . . . 16 . . . . . 16 . . . . . 2 . . . . . . Fabnet Peak Effective % 1 | . . . . . . . . . 1 1 1 1 1 1 . . . . . . . . Autooverrided 1 | . . . . . . . . . . . . . . 1 . . . . . . . . Robots Rewired 26 | . . . . . . . . 10 . 10 . . . 5 . . . . . 1 . . Allies Hacked 2 | . . . . . . . . . . . 2 . . . . . . . . . . . Hacks Repelled . | . . . . . . . . . . . . . . . . . . . . . . . Allies | -11 -10 -10 -8 -8 -8 -7 -7 -7 -5 -5 -5 -5 -5 -5 -4 -4 -3 -3 -3 -2 -1 -1 -------- Run | Yrd Mat Sub Mat Gar Mat Fac Sto Rec Fac Gar Fac Upp Upp War Pro Fac Res Qua Sec Res Acc Com Total Allies 29 | . . . . . . . . 10 . 10 . . . 6 . 1 . . 1 1 . . Largest Group 9 | . . . . . . . . 9 8 8 4 . . 6 . 1 1 . 1 1 . . Highest-Rated Group 1204 | . . . . . . . . 204 194 438 366 . . 274 . 45 41 . 1204 64 . . Highest-Rated Ally 1204 | . . . . . . . . 40 40 148 148 . . 68 . 45 41 . 1204 64 . . Initial Warlord ECA Mod 17 | . . . . . 10 9 9 9 7 7 17 17 17 17 16 16 15 15 15 14 13 13 Total Orders 3 | . . . . . . . . 2 . . . . 1 . . . . . . . . . STAY 1 | . . . . . . . . 1 . . . . . . . . . . . . . . DROP 1 | . . . . . . . . 1 . . . . . . . . . . . . . . EXPLORE 1 | . . . . . . . . . . . . . 1 . . . . . . . . . Ally Attacks 419 | . . . . . . . . 7 18 59 205 . . 29 . . . . 99 2 . . Total Damage 23534 | . . . . . . . . 214 729 2633 5485 . . 1147 . . . . 13210 116 . . Kills 107 | . . . . . . . . 2 5 16 39 . . 6 . . . . 39 . . . Allies Corrupted 2 | . . . . . . . . . . . 1 . . . . . 1 . . . . . Allies Melted 1 | . . . . . . . . . . . . . . . . . . . . 1 . . Intel | -11 -10 -10 -8 -8 -8 -7 -7 -7 -5 -5 -5 -5 -5 -5 -4 -4 -3 -3 -3 -2 -1 -1 ------- Run | Yrd Mat Sub Mat Gar Mat Fac Sto Rec Fac Gar Fac Upp Upp War Pro Fac Res Qua Sec Res Acc Com Active Infowar (turns) 14154 | . . 1717 . . . 1834 516 1774 188 719 384 901 916 829 994 513 204 . 362 924 796 583 Optics 2837 | . . . . . . . . . . . . . . . . . 172 . 362 924 796 583 Sensors 11755 | . . 1717 . . . 1834 516 1774 188 719 384 901 916 829 994 465 . . . . 518 . IFF 2 | . . . . . . . . . . . . . . . . 2 . . . . . . Terrain 51 | . . . . . . . . . . . . . . . . 48 3 . . . . . Structural 29 | . . . . . . . . . . . . . . . . . 29 . . . . . Cloaking 339 | . . . . . . . . . . . . . . . . . . . . 339 . . ECM 95 | . . . . . . . . . . . . . 1 . . . . . . . 94 . Robot Analysis Total 3 | . 2 . . . . . . 1 . . . . . . . . . . . . . . Derelict Logs Recovered 8 | . . 2 . . . . . . . . . 1 2 . 3 . . . . . . . Drone Launches 2 | . . . . . . . . . . . . . 2 . . . . . . . . . Drone Recoveries 1 | . . . . . . . . . . . . . 1 . . . . . . . . . Exploration | -11 -10 -10 -8 -8 -8 -7 -7 -7 -5 -5 -5 -5 -5 -5 -4 -4 -3 -3 -3 -2 -1 -1 ------------- Run | Yrd Mat Sub Mat Gar Mat Fac Sto Rec Fac Gar Fac Upp Upp War Pro Fac Res Qua Sec Res Acc Com Turns Passed 25596 | 42 790 2277 230 1927 1665 1835 617 1774 188 2940 1227 901 916 829 994 1528 732 531 1024 924 796 909 Spaces Moved 18040 | 38 441 1522 120 807 800 1298 267 1154 164 1318 738 800 586 672 625 1103 538 577 1365 1683 812 612 Core 15 | 6 . . . . . . . 1 . . . . . . . . . . . . . 8 Treads 1550 | . . . . . . . . . . 236 322 . . . 604 388 . . . . . . Legs 3389 | . . . . 769 561 . . 7 164 1023 50 . . . . 166 191 . . . . 458 Wheels 5103 | 32 441 1522 120 38 239 1298 267 1146 . . . . . . . . . . . . . . Hover 7955 | . . . . . . . . . . 59 366 800 586 672 21 549 347 577 1365 1655 812 146 Flight . | . . . . . . . . . . . . . . . . . . . . . . . Fastest Speed 16 | 50 90 131 116 145 120 105 105 100 100 100 87 87 110 110 144 64 64 49 16 30 31 49 Average Speed 111 | 83 145 140 145 196 167 119 116 128 100 180 137 100 125 110 144 108 73 58 38 34 41 107 Slowest Speed 1900 | 90 215 230 170 270 186 160 150 1900 100 241 187 141 141 110 144 149 142 64 108 104 113 250 Overloaded Moves 84 | . . . . . . . . . . . . . . . . . . . 56 . 28 . Propulsion Burnouts . | . . . . . . . . . . . . . . . . . . . . . . . Robots Hopped . | . . . . . . . . . . . . . . . . . . . . . . . Potential Cave-ins 23 | . . . . . . . . . . . . . . . . . 2 3 18 . . . Cave-ins Triggered 2 | . . . . . . . . . . . . . . . . . . . 2 . . . Teleports 3 | . . . . . . . . . . . . . . . . . . . 3 . . . Microwarps 1 | . . . . . . . . . . . . . . . . . . . . 1 . . Exploration Rate (%) 52 | 4 76 87 9 86 69 37 36 97 6 99 23 70 93 83 75 29 26 50 77 34 18 24 Regions Visited 22 Branch Regions 10 Pre-discovered Areas 5 | . . 1 . . . . . . . . . 1 2 . 1 . . . . . . . Known Exits Taken 18 | . . 1 1 . 1 1 1 1 1 . 1 1 1 1 1 1 1 1 1 1 1 . Unknown Exits Taken 2 | 1 1 . . . . . . . . . . . . . . . . . . . . . Scrap Searched 14 | . . 8 . . . . . . . . . 2 4 . . . . . . . . . Spaces Dug 75 | . . . . . 3 8 . 1 . 12 1 . . . . 5 26 4 1 . 14 . Terrain Destroyed 1580 | . 19 163 6 57 50 24 15 7 . 278 15 119 74 34 14 201 255 5 53 59 129 3 Melee . | . . . . . . . . . . . . . . . . . . . . . . . Projectile 384 | . . 2 6 4 50 24 15 7 . 37 15 2 6 . 14 57 39 5 15 59 24 3 AOE 1196 | . 19 161 . 53 . . . . . 241 . 117 68 34 . 144 216 . 38 . 105 . Terrain Rammed . | . . . . . . . . . . . . . . . . . . . . . . . Walls Destroyed . | . . . . . . . . . . . . . . . . . . . . . . . Machines Disabled . | . . . . . . . . . . . . . . . . . . . . . . . Actions | -11 -10 -10 -8 -8 -8 -7 -7 -7 -5 -5 -5 -5 -5 -5 -4 -4 -3 -3 -3 -2 -1 -1 --------- Run | Yrd Mat Sub Mat Gar Mat Fac Sto Rec Fac Gar Fac Upp Upp War Pro Fac Res Qua Sec Res Acc Com Total 21826 | 45 516 1615 157 1009 959 1485 474 1431 182 1747 866 870 738 762 677 1311 742 714 1686 1938 1162 740 Wait 1636 | . 4 9 6 44 30 106 103 170 6 203 51 42 114 15 6 57 48 45 138 160 257 22 Move 17988 | 37 440 1521 119 806 799 1297 266 1153 164 1315 737 799 585 671 624 1102 537 576 1362 1655 811 612 Hop . | . . . . . . . . . . . . . . . . . . . . . . . Pick Up 150 | . 13 23 6 14 13 9 7 3 3 5 6 1 1 7 2 6 4 8 6 7 3 3 Fast Attach 231 | 6 4 4 5 6 12 5 17 6 . 5 3 . 4 2 . 12 9 17 39 37 12 26 Attach 101 | . . 8 2 7 9 2 3 1 2 8 . 2 3 3 . 6 20 5 6 1 6 7 Detach 39 | . . . . 2 . . 4 2 . 5 . 2 3 1 . 2 6 3 3 1 3 2 Swap 79 | 1 8 12 3 13 1 4 4 . 1 7 4 1 2 . . 4 1 . 4 3 5 1 Drop 263 | 1 7 8 7 19 13 11 20 21 1 7 7 2 3 9 2 16 16 7 25 40 9 12 Fire 1134 | . 40 30 9 88 80 51 50 11 5 122 58 21 21 3 43 106 101 51 100 33 56 55 Melee . | . . . . . . . . . . . . . . . . . . . . . . . Ram . | . . . . . . . . . . . . . . . . . . . . . . . Kick . | . . . . . . . . . . . . . . . . . . . . . . . Crush . | . . . . . . . . . . . . . . . . . . . . . . . Escape Stasis 32 | . . . . 10 . . . . . 20 . . . . . . . . 2 . . . Rewire 171 | . . . . . . . . 64 . 50 . . 2 51 . . . 2 1 1 . . Trap 2 | . . . . . 2 . . . . . . . . . . . . . . . . . Miscellaneous . | . . . . . . . . . . . . . . . . . . . . . . . Route ------- -11/Scrapyard -10/Materials (discovered 5 exits: [*Mat x3] / [*Min] / *Sub) -10/Subcaves (discovered 3 exits: *Mat x2 / *Rec) -8/Materials (discovered 2 exits: Fac / Gar) -8/Garrison (discovered 3 exits: *Mat x3) -8/Materials -7/Factory -7/Storage -7/Recycling -5/Factory (discovered 2 exits: *Fac / Gar) -5/Garrison (discovered 3 exits: *Fac x3) -5/Factory -5/Upper Caves -5/Upper Caves (discovered 2 exits: *Fac / *War) -5/Warlord -4/Proximity Caves -4/Factory -3/Research (discovered 4 exits: *Res x3 / *Qua) -3/Quarantine (discovered 2 exits: *Sec / *Frg) -3/Section 7 -2/Research (discovered 3 exits: *Acc / *Tes x2) -1/Access -1/Command History --------- Turn | Location | Event 6 | -11/Scrapyard | Discovered new exit (range 15) 43 | -11/Scrapyard | Entered Materials 80 | -10/Materials | Discovered new exit (range 10) 183 | -10/Materials | Discovered new exit (range 14) 295 | -10/Materials | Discovered new exit (range 15) 318 | -10/Materials | Build established: Mutant 439 | -10/Materials | Discovered new exit (range 16) 824 | -10/Materials | Discovered new exit (range 8) 833 | -10/Materials | Entered Subcaves 834 | -10/Subcaves | Approached by a straggling Scientist 983 | -10/Subcaves | Shifting Twisted Machinery released Sub. Shrapnel Launcher 1203 | -10/Subcaves | Discovered new exit (range 10) 1262 | -10/Subcaves | Learned location of 1 exit from Materials 1357 | -10/Subcaves | Shifting Twisted Machinery released Scrap Shield 1365 | -10/Subcaves | Shifting Twisted Machinery released Sub. Power Source 1540 | -10/Subcaves | Shifting Twisted Machinery released Mak. System Restoration Module 1711 | -10/Subcaves | Discovered new exit (range 14) 2019 | -10/Subcaves | Learned location of Mines (-10) 2051 | -10/Subcaves | Visited 4L-MR0's lab 2069 | -10/Subcaves | Found Arachnoskeleton 2134 | -10/Subcaves | Core integrity fell below 50% 2162 | -10/Subcaves | Lost 4 parts (2n2w) 2732 | -10/Subcaves | Core integrity fell below 20% 2978 | -10/Subcaves | Discovered new exit (range 15) 3041 | -10/Subcaves | Identified exit to Materials 3110 | -10/Subcaves | Entered Materials 3110 | -8/Materials | Evolved 4 slots: Propulsion x1, Utility x2, Weapon x1 3111 | -8/Materials | Identified exit to Factory 3120 | -8/Materials | Identified exit to Garrison 3241 | -8/Materials | Central database locked down 3286 | -8/Materials | Garrison activated, responded to threat 3340 | -8/Materials | Entered Garrison 3427 | -8/Garrison | Attached Arachnoskeleton, gained temporary slots: Propulsion x3 3617 | -8/Garrison | Build established: Tank 3730 | -8/Garrison | Triggered checkpoint 3817 | -8/Garrison | Garrison Relay disabled 3929 | -8/Garrison | Learned Materials security intel 4159 | -8/Garrison | Lost 3 parts (1p1n1u) 4215 | -8/Garrison | Discovered new exit (range 9) 4240 | -8/Garrison | Triggered checkpoint 4322 | -8/Garrison | Garrison Relay disabled 4585 | -8/Garrison | Build established: Scavenger-Tank 4672 | -8/Garrison | Triggered checkpoint 4693 | -8/Garrison | Garrison Relay disabled 4722 | -8/Garrison | Discovered new exit (range 62) 4722 | -8/Garrison | Discovered new exit (range 11) 4722 | -8/Garrison | Discovered new exit (range 66) 4842 | -8/Garrison | Triggered checkpoint 5116 | -8/Garrison | Triggered checkpoint 5126 | -8/Garrison | Garrison Relay disabled 5267 | -8/Garrison | Entered Materials 5752 | -8/Materials | Garrison activated, responded to threat 5827 | -8/Materials | Discovered exit to Factory (range 16) 6067 | -8/Materials | First assault squad dispatched 6413 | -8/Materials | Build established: Tank 6564 | -8/Materials | Core integrity fell below 50% 6596 | -8/Materials | Lost 7 parts (1p2n2u2w) 6602 | -8/Materials | Destroyed 9 combat bots 6932 | -8/Materials | Entered Factory 6932 | -7/Factory | Evolved 2 slots: Propulsion x1, Utility x1 7390 | -7/Factory | Build established: Scavenger-Skirmisher 7758 | -7/Factory | Build established: Skirmisher 8671 | -7/Factory | Discovered new exit (range 16) 8745 | -7/Factory | Identified exit to Storage 8767 | -7/Factory | Entered Storage 8837 | -7/Storage | Found Prototype Launcher 8837 | -7/Storage | Identified Rocket Array 9110 | -7/Storage | Destroyed 10 combat bots 9169 | -7/Storage | Identified exit to Recycling 9380 | -7/Storage | Used back door to open Recycling access 9384 | -7/Storage | Entered Recycling 9801 | -7/Recycling | Discovered new exit (range 16) 9939 | -7/Recycling | Build established: Commander-Skirmisher 10146 | -7/Recycling | Entered Scraplab 10150 | -7/Recycling | Found Prototype Device 10150 | -7/Recycling | Identified Scrap Engine 10451 | -7/Recycling | Build established: Commander-Mutant 10868 | -7/Recycling | Build established: Commander-Construct 11106 | -7/Recycling | Identified exit to Factory 11158 | -7/Recycling | Entered Factory 11158 | -5/Factory | Accompanied by 8 allies 11158 | -5/Factory | Evolved 4 slots: Power x1, Propulsion x1, Utility x2 11265 | -5/Factory | Discovered new exit (range 6) 11270 | -5/Factory | Identified exit to Factory 11346 | -5/Factory | Identified exit to Garrison 11346 | -5/Factory | Entered Garrison 11346 | -5/Garrison | Accompanied by 3 allies 11390 | -5/Garrison | Triggered checkpoint 11425 | -5/Garrison | Lost 3 allies 11428 | -5/Garrison | Garrison Relay disabled 11515 | -5/Garrison | Spotted B-75 Beast 11586 | -5/Garrison | Destroyed B-75 Beast 11608 | -5/Garrison | Build established: Construct 11789 | -5/Garrison | Discovered new exit (range 10) 11834 | -5/Garrison | Triggered checkpoint 11884 | -5/Garrison | Garrison Relay disabled 11920 | -5/Garrison | Identified exit to Factory 11978 | -5/Garrison | Triggered checkpoint 12193 | -5/Garrison | Discovered exit to Factory (range 15) 12236 | -5/Garrison | Triggered checkpoint 12359 | -5/Garrison | Phase Generator disabled 12392 | -5/Garrison | Learned Factory security intel 12707 | -5/Garrison | Garrison Relay disabled 12823 | -5/Garrison | Attempted to access garrison exit controls, blocked by remote lockdown 12921 | -5/Garrison | Triggered checkpoint 12923 | -5/Garrison | Build established: Commander-Construct 13051 | -5/Garrison | Spotted B-86 Titan 13055 | -5/Garrison | Spotted B-86 Titan 13087 | -5/Garrison | Allies destroyed B-86 Titan 13106 | -5/Garrison | Lost 3 allies 13129 | -5/Garrison | Rewired B-90 Cyclops 13182 | -5/Garrison | Rewired B-90 Cyclops 13279 | -5/Garrison | Garrison Relay disabled 13336 | -5/Garrison | Discovered exit to Factory (range 11) 13413 | -5/Garrison | Attempted to access garrison exit controls, blocked by remote lockdown 13488 | -5/Garrison | Triggered checkpoint 13632 | -5/Garrison | Triggered checkpoint 13929 | -5/Garrison | Build established: Hacker-Construct 14286 | -5/Garrison | Entered Factory 14286 | -5/Factory | Accompanied by 4 allies 14323 | -5/Factory | Garrison activated, responded to threat 14586 | -5/Factory | First assault squad dispatched 15066 | -5/Factory | Garrison activated, responded to threat 15505 | -5/Factory | Discovered new exit (range 8) 15511 | -5/Factory | Identified exit to Upper Caves 15513 | -5/Factory | Entered Upper Caves 15583 | -5/Upper Caves | Met a Warlord Commander 15584 | -5/Upper Caves | Learned location of Warlord (-5) 15585 | -5/Upper Caves | Warlord Commander delivered Encrypted Comm Array 15585 | -5/Upper Caves | Found Encrypted Comm Array 15632 | -5/Upper Caves | Learned Factory security intel 15758 | -5/Upper Caves | Attracted the attention of an 0b10 checkpoint 15758 | -5/Upper Caves | Core integrity fell below 50% 15823 | -5/Upper Caves | System corruption reached 10% 16000 | -5/Upper Caves | Discovered new exit (range 3) 16002 | -5/Upper Caves | Identified exit to Upper Caves 16414 | -5/Upper Caves | Entered another Upper Caves area 16483 | -5/Upper Caves | Encountered a Warlord checkpoint 16659 | -5/Upper Caves | Discovered exit to Factory (range 14) 16852 | -5/Upper Caves | Build established: Construct 16926 | -5/Upper Caves | Discovered new exit (range 88) 17328 | -5/Upper Caves | Identified exit to Warlord 17330 | -5/Upper Caves | Entered Warlord 17367 | -5/Warlord | System corruption cleaned by Quarantine Array 17649 | -5/Warlord | Met Warlord 17674 | -5/Warlord | Warlord's base attacked by MAIN.C 17773 | -5/Warlord | Build established: Commander-Construct 17841 | -5/Warlord | Found Prototype Energy Gun 17847 | -5/Warlord | Found Prototype Energy Gun 17851 | -5/Warlord | Found Prototype Energy Gun 17854 | -5/Warlord | Found Prototype Launcher 18024 | -5/Warlord | Warlord forces counterattacked 18080 | -5/Warlord | Spotted Striker 18111 | -5/Warlord | Spotted Executioner 18151 | -5/Warlord | Discovered new exit (range 8) 18157 | -5/Warlord | Identified exit to Proximity Caves 18159 | -5/Warlord | Entered Proximity Caves 18161 | -4/Proximity Caves | Spotter reported a threat 18162 | -4/Proximity Caves | Spotter reported a threat 18183 | -4/Proximity Caves | Lost 18 allies 18214 | -4/Proximity Caves | Spotter reported a threat 18407 | -4/Proximity Caves | Build established: Construct 18467 | -4/Proximity Caves | Spotter reported a threat 18529 | -4/Proximity Caves | Spotter reported a threat 18619 | -4/Proximity Caves | Learned location of Armory (-3) 18621 | -4/Proximity Caves | Learned 4 Research zone layouts 18818 | -4/Proximity Caves | Spotter reported a threat 18827 | -4/Proximity Caves | Spotter reported a threat 18932 | -4/Proximity Caves | Spotter reported a threat 18985 | -4/Proximity Caves | Spotter reported a threat 19134 | -4/Proximity Caves | Discovered exit to Factory (range 14) 19153 | -4/Proximity Caves | Entered Factory 19153 | -4/Factory | Evolved 2 slots: Propulsion x1, Weapon x1 19403 | -4/Factory | Search patrols dispatched 19653 | -4/Factory | Search patrols dispatched 19661 | -4/Factory | Spotted B-86 Titan 19675 | -4/Factory | Destroyed B-86 Titan 19893 | -4/Factory | Found Quantum Capacitor 19903 | -4/Factory | Search patrols dispatched 20355 | -4/Factory | Discovered new exit (range 4) 20356 | -4/Factory | Identified exit to Research 20487 | -4/Factory | Fabricated O-32 Director? 20558 | -4/Factory | High security lockdown imminent 20579 | -4/Factory | Destroyed 10 combat bots 20638 | -4/Factory | High security lockdown engaged 20681 | -4/Factory | Entered Research 20681 | -3/Research | Accompanied by 1 ally 20681 | -3/Research | Evolved 2 slots: Utility x2 20682 | -3/Research | Identified exit to Quarantine 20931 | -3/Research | First assault squad dispatched 21003 | -3/Research | Build established: Hacker-Construct 21051 | -3/Research | Identified exit to Research 21163 | -3/Research | High security lockdown imminent 21213 | -3/Research | Spotted B-86 Titan 21228 | -3/Research | Destroyed B-86 Titan 21230 | -3/Research | Garrison activated, responded to threat 21243 | -3/Research | High security lockdown engaged 21304 | -3/Research | Destroyed 14 combat bots 21317 | -3/Research | Lost 10 parts (1p1n4u4w) 21336 | -3/Research | Identified Vortex Catalyst Activator 21338 | -3/Research | Identified Vortex Shotgun 21360 | -3/Research | Identified Vortex Rail 21367 | -3/Research | Destroyed 8 combat bots 21389 | -3/Research | Lost 5 parts (1n3u1w) 21394 | -3/Research | Core integrity fell below 50% 21413 | -3/Research | Entered Quarantine 21424 | -3/Quarantine | Destroyed 7 combat bots 21436 | -3/Quarantine | Lost 3 parts (1n1u1w) 21452 | -3/Quarantine | Found Alien Artifact 21452 | -3/Quarantine | Identified Phase Armor 21483 | -3/Quarantine | Found Alien Artifact 21483 | -3/Quarantine | Identified Phase Redirector 21511 | -3/Quarantine | Found Alien Energy Cannon 21511 | -3/Quarantine | Identified Core Cannon 21569 | -3/Quarantine | Met incapacitated Sigix Warrior 21569 | -3/Quarantine | Lockdown squad dispatched 21570 | -3/Quarantine | Acquired the access code to the Sigix quarantine chamber 21571 | -3/Quarantine | Unlocked Sigix quarantine chamber 21574 | -3/Quarantine | Found Sigix Containment Pod 21596 | -3/Quarantine | Found Alien Impact Weapon 21596 | -3/Quarantine | Identified Core Stripper 21633 | -3/Quarantine | Found Alien Artifact 21633 | -3/Quarantine | Identified Terrabomb 21633 | -3/Quarantine | Used Terrabomb 21821 | -3/Quarantine | Scanned by Researcher 21839 | -3/Quarantine | Found Alien Artifact 21844 | -3/Quarantine | Found Alien Artifact 21846 | -3/Quarantine | Found Alien Artifact 21848 | -3/Quarantine | Found Alien Artifact 21898 | -3/Quarantine | Spotted Fortress 21913 | -3/Quarantine | First assault squad dispatched 21935 | -3/Quarantine | Discovered new exit (range 6) 21935 | -3/Quarantine | Discovered new exit (range 7) 21937 | -3/Quarantine | Identified exit to Section 7 21939 | -3/Quarantine | Identified exit to Protoforge 21944 | -3/Quarantine | Entered Section 7 22035 | -3/Section 7 | Found Alien Artifact 22035 | -3/Section 7 | Identified Integrated Reactor 22035 | -3/Section 7 | Installed Integrated Reactor, increased core energy generation (+10) 22075 | -3/Section 7 | Central database locked down 22132 | -3/Section 7 | Build established: Scavenger-Tank 22194 | -3/Section 7 | First assault squad dispatched 22308 | -3/Section 7 | Identified Hpw. Transdimensional Reconstructor (x3) 22308 | -3/Section 7 | Warped through subspace 22319 | -3/Section 7 | Spotted Executioner 22319 | -3/Section 7 | Spotted Executioner 22324 | -3/Section 7 | Core integrity fell below 20% 22329 | -3/Section 7 | Spotted B-99 Colossus 22352 | -3/Section 7 | Lost 6 parts (1p2n2u1w) 22374 | -3/Section 7 | Found Alien Artifact 22374 | -3/Section 7 | Identified LRC Matter Compressor 22374 | -3/Section 7 | Installed LRC Matter Compressor, increased matter storage capacity (+125) 22376 | -3/Section 7 | Found Alien Artifact 22376 | -3/Section 7 | Identified LRC Inertial Stabilizer 22376 | -3/Section 7 | Installed LRC Inertial Stabilizer, increased mass support (+10) 22422 | -3/Section 7 | System corruption reached 10% 22467 | -3/Section 7 | Found Alien Reactor 22467 | -3/Section 7 | Identified Matter Drive 22473 | -3/Section 7 | Found Alien Energy Cannon 22473 | -3/Section 7 | Identified Drained L-Cannon 22488 | -3/Section 7 | Found Alien Artifact 22488 | -3/Section 7 | Identified Transdimensional Reconstructor (x2) 22488 | -3/Section 7 | Warped through subspace 22529 | -3/Section 7 | Spotted Striker 22536 | -3/Section 7 | Spotted Striker 22538 | -3/Section 7 | Spotted Executioner 22551 | -3/Section 7 | Activated Sigix Exoskeleton 22551 | -3/Section 7 | Unable to understand communications from Sigix Warrior 22563 | -3/Section 7 | Spotted Executioner 22592 | -3/Section 7 | Allies destroyed Executioner 22596 | -3/Section 7 | Found Prototype Processor 22596 | -3/Section 7 | Identified Exp. Core Analyzer 22609 | -3/Section 7 | Found Exp. Targeting Computer 22614 | -3/Section 7 | Found Exp. Core Analyzer 22643 | -3/Section 7 | Found Transdimensional Reconstructor 22659 | -3/Section 7 | Found Terrabomb 22660 | -3/Section 7 | Unable to understand communications from Sigix Warrior 22697 | -3/Section 7 | Destroyed Executioner 22714 | -3/Section 7 | Found Prototype Device 22714 | -3/Section 7 | Identified Adv. Kinecellerator 22748 | -3/Section 7 | Spotted Investigator 22750 | -3/Section 7 | Spotted Executioner 22750 | -3/Section 7 | Spotted Striker 22770 | -3/Section 7 | Destroyed Striker 22781 | -3/Section 7 | Unable to understand communications from Sigix Warrior 22812 | -3/Section 7 | Allies destroyed Executioner 22817 | -3/Section 7 | Unable to understand communications from Sigix Warrior 22836 | -3/Section 7 | Destroyed 11 combat bots 22836 | -3/Section 7 | Spotted Alpha 7 22836 | -3/Section 7 | Spotted Alpha 7 22856 | -3/Section 7 | Allies destroyed Alpha 7 22877 | -3/Section 7 | Allies destroyed Alpha 7 22885 | -3/Section 7 | Build established: Scavenger-Gunner 22888 | -3/Section 7 | Unable to understand communications from Sigix Warrior 22890 | -3/Section 7 | Spotted Investigator 22896 | -3/Section 7 | Allies destroyed Investigator 22902 | -3/Section 7 | Spotted Executioner 22923 | -3/Section 7 | Used Terrabomb 22924 | -3/Section 7 | Warped through subspace 22950 | -3/Section 7 | Crushed by falling debris 22951 | -3/Section 7 | Crushed by falling debris 22965 | -3/Section 7 | Found Alien Artifact 22965 | -3/Section 7 | Identified Microwarp Drive 22968 | -3/Section 7 | Entered Research 22968 | -2/Research | Warlord forces began assault on 0b10 22968 | -2/Research | Evolved 2 slots: Utility x2 22993 | -2/Research | Distinguished unit "Magnificent Bastards" dispatched to help 22993 | -2/Research | Distinguished unit "Department No. 42" dispatched to help 23078 | -2/Research | Research machine network offline 23099 | -2/Research | High security lockdown imminent 23179 | -2/Research | High security lockdown engaged 23193 | -2/Research | Found Prototype Device 23193 | -2/Research | Identified Exp. EM Disruption Field 23231 | -2/Research | Discovered new exit (range 21) 23233 | -2/Research | Met up with Warlord 23235 | -2/Research | Discovered new exit (range 14) 23290 | -2/Research | Spotted Striker 23390 | -2/Research | Borebot progress halted 23430 | -2/Research | Found Prototype Protection 23430 | -2/Research | Identified Centrium Heavy Armor Plating 23545 | -2/Research | Spotted Striker 23553 | -2/Research | Borebot progress halted 23582 | -2/Research | Lost 7 allies 23595 | -2/Research | Discovered new exit (range 5) 23596 | -2/Research | Identified exit to Testing 23611 | -2/Research | Identified exit to Access 23655 | -2/Research | Build established: Scavenger-Sprinter 23687 | -2/Research | Spotted Striker 23736 | -2/Research | Lost 10 allies 23792 | -2/Research | Spotted Executioner 23792 | -2/Research | Destroyed Executioner 23812 | -2/Research | Spotted Striker 23856 | -2/Research | Found Prototype Device 23892 | -2/Research | Entered Access 23892 | -1/Access | Evolved 2 slots: Utility x1, Weapon x1 23894 | -1/Access | Identified Exp. ECM Suite 24019 | -1/Access | Spotted B-99 Colossus 24102 | -1/Access | Lost 10 allies 24246 | -1/Access | Found Prototype Launcher 24246 | -1/Access | Identified Com. Tesla Bomb Launcher 24349 | -1/Access | Destroyed 8 combat bots 24353 | -1/Access | Lost 4 parts (1p2n1u) 24392 | -1/Access | First assault squad dispatched 24617 | -1/Access | Build established: Scavenger-Scout 24652 | -1/Access | High security lockdown imminent 24663 | -1/Access | Energy Cycler disabled 24667 | -1/Access | Spotted B-99 Colossus 24677 | -1/Access | Spotted B-99 Colossus 24687 | -1/Access | Discovered new exit (range 3) 24687 | -1/Access | Identified exit to Command 24688 | -1/Access | Entered Command 24716 | -1/Command | Lost 7 parts (1n2u4w) 24922 | -1/Command | Disengaged cave seal 24922 | -1/Command | Derelicts emerged from the dark tunnel 24922 | -1/Command | Welcomed Warlord to Command 24938 | -1/Command | First assault squad dispatched 25026 | -1/Command | Lost 3 parts (1u2w) 25058 | -1/Command | Build established: Scavenger-Gunner 25126 | -1/Command | Lost 8 allies 25197 | -1/Command | Lost 10 allies 25231 | -1/Command | Spotted M Guard 25232 | -1/Command | Spotted M Guard 25239 | -1/Command | Spotted Combat Programmer 25239 | -1/Command | Spotted Combat Programmer 25243 | -1/Command | Combat Programmer assimilated allied 1C-TSQ(g) 25244 | -1/Command | Spotted 1C-TSQ(g) 25253 | -1/Command | Warlord commented on Warlord statues 25288 | -1/Command | All MAIN.C guards destroyed 25310 | -1/Command | Lost 13 allies 25431 | -1/Command | Met MAIN.C 25460 | -1/Command | 0b10 Conduit disabled 25468 | -1/Command | System corruption reached 10% 25488 | -1/Command | Destroyed MAIN.C Shell 25491 | -1/Command | MAIN.C activated Command garrisons 25536 | -1/Command | Lost 4 allies 25557 | -1/Command | Core integrity fell below 50% 25564 | -1/Command | Failed to warp due to unstable space 25587 | -1/Command | Core integrity fell below 20% 25597 | -1/Command | Destroyed by MAIN.C with Omega Cannon Last Messages --------------- 25566_ H-88 Terminator unfolds itself. 25567_ Lgt. Quantum Reactor destroyed. 25568_ Knocked back. 25570_ Acquired Corrupted Lgt. Angular Momentum Engine. 25570_ Integrated Corrupted Lgt. Angular Momentum Engine (+2). 25570_ P-80 Master resets R-10 Processor, system corruption cleaned. 25571_ R-10 Processor collects Matter Compressor. 25572_ Acquired 15 matter. 25574_ Lgt. Angular Momentum Engine destroyed. 25574_ Knocked back. 25583_ Exp. Targeting Computer destroyed. 25586_ AJ8B9CS 1>HXZ369,ZRK=P/TCAOHTRYDZ&A0C 25591_ Cmb. Linear Gravjet destroyed. 25591_ Graphene Brace destroyed. 25593_ Penetrated by Slug. 25594_ Centrium Heavy Armor Plating destroyed. Map ----- +----------------------------------------------------+ | ?????????????????????????????????????????????????? | | ?????????????????????????????????????????????????? | | ?????????????????????????????????????????????????? | | ?????????????????????????????????????????????????? | | ?????????????????????????????????????????????????? | | ?????????????????????????????????????????????????? | | ?????????????????????????????????????????????????? | | ?????????????????????????????????#?#############?? | | ????????????????????????????????? """" #?? | | ????????????????????????????????? "" #?? | | ??????????????????????????????? "" ### | | ??????????????????????????""""?""""" / | | ??????????????????????????" " """ / | | ??????????????????????????"" """"" %%%= / | | ??????????????????????????"" """"" % != ### | | ?????????????????????????# " """" %% % #?? | | ?????????????????????????# " " % % =%= #?? | | ?????????????????????????# " % ! "#?? | | ?????????????????????????#""""" " p """"#?? | | ?????????????????????????#"" ! "" """""#?? | | ?????????????????????????# % """""""""#?? | | ?????????????????????????# " " " #?? | | ?????????????????????????# % " " " " #?? | | ?????????????????????????" " " " """" " #?? | | ????????????????????????"" % """ " " """" ??? | | ????????????????????????"@% " " " " ??? | | ????????????????????????## """"""""" " ????? | | ?????????????????????????# % " """ " """"""????? | | ?????????????????????????# """ " " " ????? | | ?????????????????????????###############?##??????? | | ?????????????????????????????????????????????????? | | ?????????????????????????????????????????????????? | | ?????????????????????????????????????????????????? | | ?????????????????????????????????????????????????? | | ?????????????????????????????????????????????????? | | ?????????????????????????????????????????????????? | | ?????????????????????????????????????????????????? | | ?????????????????????????????????????????????????? | | ?????????????????????????????????????????????????? | | ?????????????????????????????????????????????????? | | ?????????????????????????????????????????????????? | | ?????????????????????????????????????????????????? | | ?????????????????????????????????????????????????? | | ?????????????????????????????????????????????????? | | ?????????????????????????????????????????????????? | | ?????????????????????????????????????????????????? | | ?????????????????????????????????????????????????? | | ?????????????????????????????????????????????????? | | ?????????????????????????????????????????????????? | | ?????????????????????????????????????????????????? | +----------------------------------------------------+ Best States ------------- Heat Dissipation 110 Coolant Potential 120 Energy Generation 64 Energy Capacity 776 Matter Stores 425 Matter Capacity 425 Sight Range 23 Robot Scan Range 16 Terrain Scan Range 16 Terrain Scan Density 10 ECM Strength 3 Cloak Strength 4 Additional Mass Support 12 Corruption Containment 12 Corruption Block 20 Armor Coverage 1200 Resistance: KI 20 Core Shielding 20 Phase Shifting 10 Evasion (%) 70 Targeting Accuracy 12 Target Analysis 8 Core Analysis 12 Armor Integrity Analysis 40 Recoil Reduction 5 Energy Filtering 30 Kinecelleration 50 Offensive Hacking 28 Defensive Hacking 23 Authchip Count 4 Item Schematics ----------------- Imp. Shield Generator | -7/Recycling | Hacked Hvy. Shield Leg | -4/Factory | Hacked Cld. Field Propulsion Drive | -3/Quarantine | Archive Enh. Biometal Leg | -3/Quarantine | Archive Imp. Matter Compressor | -3/Quarantine | Archive Imp. Diametric Drive | -3/Quarantine | Archive Shock Maul | -3/Quarantine | Archive Prc. Matter Filter | -3/Quarantine | Archive Adv. Plasma Rifle | -3/Quarantine | Archive Enh. Flexi-carbon Leg | -3/Quarantine | Archive Imp. Matter Neutralizer | -3/Quarantine | Archive Com. Particle Reactor | -3/Quarantine | Archive Exp. Targeting Computer | -3/Quarantine | Archive Exp. Thermal Generator | -3/Section 7 | Archive Prc. Energy Filter | -3/Section 7 | Archive Adv. Energy Well | -3/Section 7 | Archive Robot Schematics ------------------ Y-72 Warden | -3/Quarantine | Archive A-02 Transporter | -3/Section 7 | Archive Fabricated ------------ O-32 Director | x1 | -4/Factory | Preloaded Repaired ---------- Nothing Studied --------- Wheel | -8/Materials | Hacked Arm. Huge Wheel | -7/Factory | Hacked Hpw. Shotgun | -7/Factory | Hacked Micro-nuke Launcher | -3/Research | Hacked Lgt. Fission Core | -3/Section 7 | Hacked Alien Tech Used ----------------- Phase Armor Phase Redirector Core Cannon Core Stripper Terrabomb Integrated Reactor High-powered Transdimensional Reconstructor LRC Matter Compressor LRC Inertial Stabilizer Matter Drive Drained L-Cannon Transdimensional Reconstructor Microwarp Drive Achievements -------------- Be The Sidekick Everyone Must Die Irresistible Scrap Most Wanted Challenges ------------ None Game ------ Seed SpectralCompactSabre Manual? 0 Play Time 05:14:06 Cumulative 292.4 hours Start 2025.12.13 @ 18:33:22 End 2025.12.14 @ 00:33:48 Sessions 3 Manual Loads 0 Difficulty Rogue Special Mode None Game No. 100 Rogue 100 Adventurer 0 Explorer 0 Win Type - Total 2 Types 1/0/0/0/0/0/0/0/0/1 Lore% 73 Gallery% 68 Achievement% 57 Wizard Run 0 Options --------- Layout 1 ASCII 0 Keyboard 0 Movement Mouse Keybinds 0 Fullscreen 2 Font 32/SmallcapsGlow Map View 50x35 Zoom Use 0% Tactical HUD 1 Map Filters NONE Filters NONE Steam 1 RUN: b32aae7e-3823-4dc6-be87-bdc7bbf856b2